fUSD/lending_fUSD_20250107
["ID","MTS","AMOUNT","RATE_DAILY","PERIOD"]
[348069751,1736292647872,-500.0,0.0001,2]
[348069752,1736292647881,-500.0,0.0001,2]
[348069753,1736292647890,-500.0,0.0001,2]
[348069754,1736292647900,-500.0,0.0001,2]
[348069755,1736292647910,-500.0,0.0001,2]
[348069756,1736292647919,-500.0,0.0001,2]
[348069757,1736292647929,-2600.0,0.0001,3]
[348069758,1736292647938,-500.0,0.0001,2]
[348069759,1736292647948,-500.0,0.0001,2]
[348069760,1736292647957,-2508183.723973,0.0001,2]
[348069761,1736292647967,-500.0,0.0001,2]
[348069762,1736292647976,-500.0,0.0001,2]
[348069763,1736292647986,-101322.63583864,0.0001,2]
[348069764,1736292647995,-35261.8615164,0.0001,2]
[348069765,1736292648005,-8033.10459111,0.0001,2]
[348069766,1736292648014,-501.21,0.0001,2]
[348069767,1736292648024,-500.0,0.0001,2]
[348069768,1736292648033,-500.0,0.0001,2]
[348069769,1736292648043,-500.0,0.0001,2]
[348069770,1736292648053,-500.0,0.0001,2]
[348069771,1736292648065,-1000.0,0.0001,2]
[348069772,1736292648074,-500.0,0.0001,2]
[348069773,1736292648083,-1000.0,0.0001,2]
[348069774,1736292648093,-500.0,0.0001,2]
[348069775,1736292648103,-1000.0,0.0001,2]
[348069776,1736292648113,-526.45,0.0001,2]
[348069777,1736292648123,-500.0,0.0001,2]
[348069778,1736292648132,-992.2877,0.0001,2]
[348069779,1736292648142,-2101.08021817,0.0001,2]
[348069780,1736292648151,-250.0,0.0001,2]
[348069781,1736292648161,-250.0,0.0001,2]
[348069782,1736292648171,-250.0,0.0001,2]
[348069783,1736292648181,-250.0,0.0001,2]
[348069784,1736292648336,-250.0,0.0001,2]
[348069785,1736292648367,-250.0,0.0001,2]
[348069786,1736292648378,-250.0,0.0001,2]
[348069787,1736292648389,-250.0,0.0001,2]
[348069788,1736292648400,-250.0,0.0001,2]
[348069789,1736292648412,-250.0,0.0001,2]
[348069790,1736292648423,-250.0,0.0001,2]
[348069791,1736292648435,-250.0,0.0001,2]
[348069792,1736292648445,-250.0,0.0001,2]
[348069793,1736292648455,-500.0,0.0001,2]
[348069794,1736292648466,-250.0,0.0001,2]
[348069795,1736292648476,-500.0,0.0001,2]
[348069796,1736292648487,-361.39496506,0.0001,2]
[348069797,1736292648496,-361.39496499,0.0001,2]
[348069798,1736292648507,-361.39496499,0.0001,2]
[348069799,1736292648518,-361.39496499,0.0001,2]
[348069800,1736292648528,-361.39496499,0.0001,2]
[348069801,1736292648539,-361.39496499,0.0001,2]
[348069802,1736292648548,-500.0,0.00010001,2]
[348069803,1736292648559,-500.0,0.00010001,2]
[348069804,1736292648570,-500.0,0.00010001,2]
[348069805,1736292648581,-500.0,0.00010001,2]
[348069806,1736292648591,-500.0,0.00010001,2]
[348069807,1736292648600,-500.0,0.00010001,2]
[348069808,1736292648610,-560.18,0.00010001,2]
[348069809,1736292648621,-500.0,0.00010001,2]
[348069810,1736292648631,-532.9,0.00010001,2]
[348069811,1736292648641,-500.0,0.00010001,2]
[348069812,1736292648652,-500.0,0.00010001,2]
[348069813,1736292648662,-838.97,0.00010001,2]
[348069814,1736292648671,-500.0,0.00010001,2]
[348069815,1736292648680,-500.0,0.00010001,2]
[348069816,1736292648689,-500.0,0.00010001,2]
[348069817,1736292648700,-500.0,0.00010001,2]
[348069818,1736292648711,-500.0,0.00010001,2]
[348069819,1736292648720,-500.0,0.00010001,2]
[348069820,1736292648731,-500.0,0.00010001,2]
[348069821,1736292648741,-500.0,0.00010001,2]
[348069822,1736292648751,-500.0,0.00010001,2]
[348069823,1736292648760,-500.0,0.00010001,2]
[348069824,1736292648770,-561.68,0.00010001,2]
[348069825,1736292648780,-500.0,0.00010001,2]
[348069826,1736292648790,-500.0,0.00010001,2]
[348069827,1736292648800,-500.0,0.00010001,2]
[348069828,1736292648809,-500.0,0.00010001,2]
[348069829,1736292648820,-500.0,0.00010001,2]
[348069830,1736292648829,-500.0,0.00010001,2]
[348069831,1736292648840,-500.0,0.00010001,2]
[348069832,1736292648850,-500.0,0.00010001,2]
[348069833,1736292648860,-500.0,0.00010001,2]
[348069834,1736292648870,-650.26,0.00010001,2]
[348069835,1736292648880,-1115.0,0.00010001,2]
[348069836,1736292648889,-486.43,0.00010001,2]
[348069837,1736292648899,-500.0,0.00010001,2]
[348069838,1736292648908,-500.0,0.00010001,2]
[348069839,1736292648918,-500.0,0.00010001,2]
[348069840,1736292648927,-500.0,0.00010001,2]
[348069841,1736292648938,-1082.07,0.00010001,2]
[348069842,1736292648948,-649.16,0.00010001,2]
[348069843,1736292648957,-987.88,0.00010001,2]
[348069844,1736292648966,-672.76,0.00010001,2]
[348069845,1736292648976,-397.05273868,0.00010001,2]
[348069846,1736292648986,-500.0,0.00010001,2]
[348069847,1736292648996,-500.0,0.00010001,2]
[348069848,1736292649005,-500.0,0.00010001,2]
[348069849,1736292649015,-500.0,0.00010001,2]
[348069850,1736292649025,-500.0,0.00010001,2]
[348069851,1736292649035,-500.0,0.00010001,2]
[348069852,1736292649046,-500.0,0.00010001,2]
[348069853,1736292649056,-500.0,0.00010001,2]
[348069854,1736292649071,-500.0,0.00010001,2]
[348069855,1736292649081,-620.94,0.00010001,2]
[348069856,1736292649090,-500.0,0.00010001,2]
[348069857,1736292649100,-500.0,0.00010001,2]
[348069858,1736292649109,-500.0,0.00010001,2]
[348069859,1736292649119,-691.37,0.00010001,2]
[348069860,1736292649129,-500.0,0.00010001,2]
[348069861,1736292649138,-915.97,0.00010001,2]
[348069862,1736292649148,-548.18,0.00010001,2]
[348069863,1736292649158,-500.0,0.00010001,2]
[348069864,1736292649168,-748.05,0.00010001,2]
[348069865,1736292649178,-500.0,0.00010001,2]
[348069866,1736292649187,-500.0,0.00010001,2]
[348069867,1736292649197,-500.0,0.00010001,2]
[348069868,1736292649206,-500.0,0.00010001,2]
[348069869,1736292649216,-785.16,0.00010001,2]
[348069870,1736292649226,-523.95,0.00010001,2]
[348069871,1736292649236,-856.44,0.00010002,2]
[348069872,1736292649245,-981.16,0.00010002,2]
[348069873,1736292649254,-1160.94,0.00010002,2]
[348069874,1736292649264,-818.18,0.00010002,2]
[348069875,1736292649273,-1925.98,0.00010002,2]
[348069876,1736292649283,-1346.43,0.00010002,2]
[348069877,1736292649293,-3191.57,0.00010002,2]
[348069878,1736292649303,-2217.3,0.00010002,2]
[348069879,1736292649313,-500.0,0.00010002,2]
[348069880,1736292649323,-1106.25,0.00010002,2]
[348069881,1736292649333,-3006.56,0.00010002,2]
[348069882,1736292649342,-744.34,0.00010002,2]
[348069883,1736292649351,-1231.32,0.00010002,2]
[348069884,1736292649361,-1259.96,0.00010002,2]
[348069885,1736292649371,-1978.38,0.00010002,2]
[348069886,1736292649382,-1056.07,0.00010002,2]
[348069887,1736292649393,-3128.95,0.00010002,2]
[348069888,1736292649403,-1437.13,0.00010002,2]
[348069889,1736292649413,-2298.99,0.00010002,2]
[348069890,1736292649423,-1358.28,0.00010002,2]
[348069891,1736292649432,-1418.78,0.00010002,2]
[348069892,1736292649442,-660.67,0.00010062,2]
[348069893,1736292649452,-361.39496499,0.00010093,2]
[348069894,1736292649462,-869.24,0.00010097,2]
[348069895,1736292649471,-671.0,0.00010097,2]
[348069896,1736292649481,-1267.31,0.00010097,2]
[348069897,1736292649490,-5460.23,0.00010097,2]
[348069898,1736292649500,-596.22,0.00010097,2]
[348069899,1736292649510,-2176.3,0.00010097,2]
[348069900,1736292649519,-1159.33,0.00010097,2]
[348069901,1736292649529,-1069.96,0.00010097,2]
[348069902,1736292649538,-1526.92,0.00010097,2]
[348069903,1736292649547,-1766.9,0.00010097,2]
[348069904,1736292649557,-500.0,0.00010097,2]
[348069905,1736292649567,-935.34,0.00010097,2]
[348069906,1736292649576,-3211.9,0.00010097,2]
[348069907,1736292649586,-936.837691,0.00010097,2]
[348069908,1736292649595,-1374.41,0.00010097,2]
[348069909,1736292649604,-848.56,0.00010097,2]
[348069910,1736292649614,-864.840061,0.00010097,2]
[348069911,1736292649623,-3269.2,0.00010097,2]
[348069912,1736292649633,-1755.43,0.00010097,2]
[348069913,1736292649643,-1379.47,0.00010097,2]
[348069914,1736292649653,-715.68,0.00010097,2]
[348069915,1736292649663,-713.64,0.00010097,2]
[348069916,1736292649672,-569.4,0.00010097,2]
[348069917,1736292649682,-500.0,0.00010098,2]
[348069918,1736292649691,-500.0,0.00010098,2]
[348069919,1736292649701,-500.0,0.00010098,2]
[348069920,1736292649709,-500.0,0.00010098,2]
[348069921,1736292649717,-500.0,0.00010098,2]
[348069922,1736292649726,-500.0,0.00010098,2]
[348069923,1736292649735,-500.0,0.00010098,2]
[348069924,1736292649743,-500.0,0.00010098,2]
[348069925,1736292649751,-500.0,0.00010098,2]
[348069926,1736292649760,-500.0,0.00010098,2]
[348069927,1736292649769,-500.0,0.00010098,2]
[348069928,1736292649779,-500.0,0.00010098,2]
[348069929,1736292649789,-873.35,0.00010098,2]
[348069930,1736292649798,-500.0,0.00010098,2]
[348069931,1736292649808,-500.0,0.00010098,2]
[348069932,1736292649817,-627.81,0.00010098,2]
[348069933,1736292649827,-500.0,0.00010098,2]
[348069934,1736292649836,-500.0,0.00010098,2]
[348069935,1736292649846,-1651.15,0.00010098,2]
[348069936,1736292649855,-830.73,0.00010098,2]
[348069937,1736292649865,-2943.89,0.00010098,2]
[348069938,1736292649874,-1390.53,0.00010098,2]
[348069939,1736292649884,-747.25,0.00010098,2]
[348069940,1736292649894,-693.1,0.00010098,2]
[348069941,1736292649903,-500.0,0.00010098,2]
[348069942,1736292649915,-735.02,0.00010098,2]
[348069943,1736292649925,-714.32,0.00010098,2]
[348069944,1736292649935,-500.0,0.00010098,2]
[348069945,1736292649944,-1293.95,0.00010098,2]
[348069946,1736292649954,-500.0,0.00010098,2]
[348069947,1736292649964,-669.98,0.00010098,2]
[348069948,1736292649973,-500.0,0.00010098,2]
[348069949,1736292649983,-1091.45,0.00010098,2]
[348069950,1736292649992,-536.11,0.00010098,2]
[348069951,1736292650002,-768.98,0.00010098,2]
[348069952,1736292650011,-1066.69,0.00010098,2]
[348069953,1736292650021,-5859.49,0.00010099,2]
[348069954,1736292650032,-1032.62,0.00010099,2]
[348069955,1736292650043,-628.06,0.00010099,2]
[348069956,1736292650052,-648.95,0.00010099,2]
[348069957,1736292650064,-2801.34,0.00010099,2]
[348069958,1736292650073,-500.0,0.00010099,2]
[348069959,1736292650083,-1062.87,0.00010099,2]
[348069960,1736292650093,-1463.66,0.00010099,2]
[348069961,1736292650103,-1150.62,0.00010099,2]
[348069962,1736292650112,-1898.62,0.00010099,2]
[348069963,1736292650122,-1000.0,0.00010099,2]
[348069964,1736292650142,-1279.25,0.00010099,2]
[348069965,1736292650151,-778.74,0.00010099,2]
[348069966,1736292650161,-2516.19,0.00010099,2]
[348069967,1736292650171,-2106.61,0.00010099,2]
[348069968,1736292650180,-564.84,0.00010137,2]
[348069969,1736292650190,-212.414,0.00010153,2]
[348069970,1736292650200,-151.164,0.00010153,2]
[348069971,1736292650209,-566.0,0.00010153,2]
[348069972,1736292650219,-634.0,0.00010153,2]
[348069973,1736292650228,-1860.0,0.00010153,2]
[348069974,1736292650239,-916.0,0.00010153,2]
[348069975,1736292650249,-819.0,0.00010153,2]
[348069976,1736292650258,-3776.0,0.00010153,2]
[348069977,1736292650268,-1258.0,0.00010153,2]
[348069978,1736292650277,-3976.0,0.00010153,2]
[348069979,1736292650287,-537.0,0.00010153,2]
[348069980,1736292650296,-1103.0,0.00010153,2]
[348069981,1736292650306,-150.0,0.00010153,2]
[348069982,1736292650316,-1267.0,0.00010153,2]
[348069983,1736292650325,-2014.0,0.00010153,2]
[348069984,1736292650335,-636.0,0.00010153,2]
[348069985,1736292650345,-3894.0,0.00010153,2]
[348069986,1736292650355,-541.07,0.00010174,2]
[348069987,1736292650364,-500.0,0.00010174,2]
[348069988,1736292650375,-524.27,0.00010174,2]
[348069989,1736292650384,-571.57,0.00010174,2]
[348069990,1736292650393,-500.0,0.00010174,2]
[348069991,1736292650403,-693.44,0.00010174,2]
[348069992,1736292650416,-509.19,0.00010174,2]
[348069993,1736292650425,-657.72,0.00010174,2]
[348069994,1736292650435,-500.0,0.00010174,2]
[348069995,1736292650445,-500.0,0.00010174,2]
[348069996,1736292650455,-500.0,0.00010174,2]
[348069997,1736292650464,-500.0,0.00010174,2]
[348069998,1736292650474,-500.0,0.00010174,2]
[348069999,1736292650484,-521.0,0.00010174,2]
[348070000,1736292650494,-503.96,0.00010174,2]
[348070001,1736292650503,-500.0,0.00010174,2]
[348070002,1736292650513,-357.4173704,0.00010174,2]
[348070003,1736292650523,-561.94,0.00010174,2]
[348070004,1736292650533,-589.55,0.00010174,2]
[348070005,1736292650543,-500.0,0.00010174,2]
[348070006,1736292650552,-500.0,0.00010174,2]
[348070007,1736292650562,-500.0,0.00010174,2]
[348070008,1736292650571,-669.39,0.00010174,2]
[348070009,1736292650581,-500.0,0.00010174,2]
[348070010,1736292650591,-500.0,0.00010174,2]
[348070011,1736292650601,-602.31,0.00010174,2]
[348070012,1736292650611,-500.0,0.00010174,2]
[348070013,1736292650620,-500.0,0.00010174,2]
[348070014,1736292650630,-543.78,0.00010174,2]
[348070015,1736292650639,-500.0,0.00010174,2]
[348070016,1736292650648,-500.0,0.00010174,2]
[348070017,1736292650659,-631.46,0.00010174,2]
[348070018,1736292650668,-500.0,0.00010174,2]
[348070019,1736292650677,-500.0,0.00010174,2]
[348070020,1736292650686,-500.0,0.00010174,2]
[348070021,1736292650695,-500.0,0.00010174,2]
[348070022,1736292650705,-500.0,0.00010174,2]
[348070023,1736292650714,-500.0,0.00010174,2]
[348070024,1736292650723,-618.91,0.00010174,2]
[348070025,1736292650733,-500.0,0.00010174,2]
[348070026,1736292650743,-500.0,0.00010174,2]
[348070027,1736292650752,-662.58,0.00010174,2]
[348070028,1736292650762,-643.65,0.00010174,2]
[348070029,1736292650772,-574.37,0.00010174,2]
[348070030,1736292650783,-640.72,0.00010174,2]
[348070031,1736292650793,-500.0,0.00010174,2]
[348070032,1736292650803,-500.0,0.00010174,2]
[348070033,1736292650812,-826.87,0.00010174,2]
[348070034,1736292650822,-548.03,0.00010174,2]
[348070035,1736292650832,-500.0,0.00010174,2]
[348070036,1736292650842,-698.06,0.00010174,2]
[348070037,1736292650851,-500.0,0.00010174,2]
[348070038,1736292650862,-500.0,0.00010174,2]
[348070039,1736292650872,-604.13,0.00010174,2]
[348070040,1736292650881,-500.0,0.00010174,2]
[348070041,1736292650891,-500.0,0.00010174,2]
[348070042,1736292650901,-500.0,0.00010174,2]
[348070043,1736292650912,-559.91,0.00010174,2]
[348070044,1736292650922,-2335.15,0.00010174,2]
[348070045,1736292650932,-3858.83,0.00010174,2]
[348070046,1736292650942,-576.27,0.00010174,2]
[348070047,1736292650952,-500.0,0.00010174,2]
[348070048,1736292651113,-752.42,0.00010174,2]
[348070049,1736292651123,-2247.14,0.00010174,2]
[348070050,1736292651133,-500.0,0.00010174,2]
[348070051,1736292651143,-500.0,0.00010174,2]
[348070052,1736292651152,-703.22,0.00010174,2]
[348070053,1736292651162,-709.69,0.00010174,2]
[348070054,1736292651172,-3001.65,0.00010174,2]
[348070055,1736292651181,-500.0,0.00010174,2]
[348070056,1736292651191,-500.0,0.00010174,2]
[348070057,1736292651200,-500.0,0.00010174,2]
[348070058,1736292651209,-944.77,0.00010174,2]
[348070059,1736292651219,-500.0,0.00010174,2]
[348070060,1736292651229,-501.02,0.00010174,2]
[348070061,1736292651238,-1004.2,0.00010174,2]
[348070062,1736292651247,-500.0,0.00010174,2]
[348070063,1736292651257,-500.0,0.00010174,2]
[348070064,1736292651266,-555.21,0.00010174,2]
[348070065,1736292651276,-575.12,0.00010174,2]
[348070066,1736292651287,-941.82,0.00010174,2]
[348070067,1736292651303,-607.67,0.00010174,2]
[348070068,1736292651314,-500.0,0.00010174,2]
[348070069,1736292651324,-500.0,0.00010174,2]
[348070070,1736292651334,-500.0,0.00010174,2]
[348070071,1736292651343,-500.0,0.00010174,2]
[348070072,1736292651354,-361.39496499,0.00010221,2]
[348070073,1736292651364,-2351.89,0.00010233,2]
[348070074,1736292651382,-1267.64,0.00010233,2]
[348070075,1736292651392,-861.33,0.00010233,2]
[348070076,1736292651402,-915.28,0.00010233,2]
[348070077,1736292651413,-500.0,0.00010233,2]
[348070078,1736292651423,-1100.64,0.00010233,2]
[348070079,1736292651433,-673.78,0.00010233,2]
[348070080,1736292651442,-754.88,0.00010233,2]
[348070081,1736292651452,-802.12,0.00010233,2]
[348070082,1736292651463,-1104.23,0.00010233,2]
[348070083,1736292651472,-1542.83,0.00010233,2]
[348070084,1736292651481,-2595.99,0.00010233,2]
[348070085,1736292651491,-1547.9,0.00010233,2]
[348070086,1736292651500,-500.0,0.00010274,2]
[348070087,1736292651510,-500.0,0.00010274,2]
[348070088,1736292651520,-500.0,0.00010274,2]
[348070089,1736292651529,-500.0,0.00010274,2]
[348070090,1736292651538,-500.0,0.00010274,2]
[348070091,1736292651548,-500.0,0.00010274,2]
[348070092,1736292651557,-500.0,0.00010274,2]
[348070093,1736292651567,-500.0,0.00010274,2]
[348070094,1736292651576,-500.0,0.00010274,2]
[348070095,1736292651586,-500.0,0.00010274,2]
[348070096,1736292651596,-500.0,0.00010274,2]
[348070097,1736292651606,-500.0,0.00010274,2]
[348070098,1736292651615,-500.0,0.00010274,2]
[348070099,1736292651625,-500.0,0.00010274,2]
[348070100,1736292651634,-500.0,0.00010274,2]
[348070101,1736292651644,-500.0,0.00010274,2]
[348070102,1736292651653,-500.0,0.00010274,2]
[348070103,1736292651664,-500.0,0.00010274,2]
[348070104,1736292651674,-500.0,0.00010274,2]
[348070105,1736292651683,-500.0,0.00010274,2]
[348070106,1736292651692,-634.89,0.00010274,2]
[348070107,1736292651702,-500.0,0.00010274,2]
[348070108,1736292651711,-500.0,0.00010274,2]
[348070109,1736292651720,-500.0,0.00010274,2]
[348070110,1736292651730,-500.0,0.00010274,2]
[348070111,1736292651739,-500.0,0.00010274,2]
[348070112,1736292651748,-500.0,0.00010274,2]
[348070113,1736292651758,-500.0,0.00010274,2]
[348070114,1736292651768,-500.0,0.00010274,2]
[348070115,1736292651778,-500.0,0.00010274,2]
[348070116,1736292651788,-500.0,0.00010274,2]
[348070117,1736292651797,-500.0,0.00010274,2]
[348070118,1736292651806,-347.47821761,0.00010274,2]
[348070119,1736292651816,-578.10602452,0.00010274,2]
[348070120,1736292651825,-500.0,0.00010274,2]
[348070121,1736292651835,-500.0,0.00010274,2]
[348070122,1736292651845,-500.0,0.00010274,2]
[348070123,1736292651855,-500.0,0.00010274,2]
[348070124,1736292651864,-500.0,0.00010274,2]
[348070125,1736292651874,-500.0,0.00010274,2]
[348070126,1736292651883,-500.0,0.00010274,2]
[348070127,1736292651893,-500.0,0.00010274,2]
[348070128,1736292651903,-500.0,0.00010274,2]
[348070129,1736292651914,-500.0,0.00010274,2]
[348070130,1736292651924,-500.0,0.00010274,2]
[348070131,1736292651933,-500.0,0.00010274,2]
[348070132,1736292651942,-500.0,0.00010274,2]
[348070133,1736292651952,-500.0,0.00010274,2]
[348070134,1736292651961,-500.0,0.00010274,2]
[348070135,1736292651971,-492.06089687,0.00010274,2]
[348070136,1736292651980,-500.0,0.00010274,2]
[348070137,1736292651990,-500.0,0.00010274,2]
[348070138,1736292652000,-500.0,0.00010274,2]
[348070139,1736292652009,-500.0,0.00010274,2]
[348070140,1736292652019,-500.0,0.00010274,2]
[348070141,1736292652031,-612.72308261,0.00010274,2]
[348070142,1736292652041,-500.0,0.00010274,2]
[348070143,1736292652051,-500.0,0.00010275,2]
[348070144,1736292652062,-500.0,0.00010275,2]
[348070145,1736292652073,-500.0,0.00010275,2]
[348070146,1736292652082,-500.0,0.00010275,2]
[348070147,1736292652091,-500.0,0.00010275,2]
[348070148,1736292652101,-500.0,0.00010275,2]
[348070149,1736292652110,-560.18,0.00010275,2]
[348070150,1736292652120,-500.0,0.00010275,2]
[348070151,1736292652130,-532.9,0.00010275,2]
[348070152,1736292652139,-500.0,0.00010275,2]
[348070153,1736292652150,-838.97,0.00010275,2]
[348070154,1736292652162,-500.0,0.00010275,2]
[348070155,1736292652171,-500.0,0.00010275,2]
[348070156,1736292652181,-500.0,0.00010275,2]
[348070157,1736292652191,-500.0,0.00010275,2]
[348070158,1736292652200,-500.0,0.00010275,2]
[348070159,1736292652210,-500.0,0.00010275,2]
[348070160,1736292652220,-500.0,0.00010275,2]
[348070161,1736292652229,-500.0,0.00010275,2]
[348070162,1736292652239,-500.0,0.00010275,2]
[348070163,1736292652249,-500.0,0.00010275,2]
[348070164,1736292652258,-561.68,0.00010275,2]
[348070165,1736292652267,-500.0,0.00010275,2]
[348070166,1736292652277,-500.0,0.00010275,2]
[348070167,1736292652286,-500.0,0.00010275,2]
[348070168,1736292652296,-500.0,0.00010275,2]
[348070169,1736292652306,-500.0,0.00010275,2]
[348070170,1736292652316,-500.0,0.00010275,2]
[348070171,1736292652325,-500.0,0.00010275,2]
[348070172,1736292652335,-500.0,0.00010275,2]
[348070173,1736292652345,-500.0,0.00010275,2]
[348070174,1736292652354,-500.0,0.00010275,2]
[348070175,1736292652364,-650.26,0.00010275,2]
[348070176,1736292652373,-1115.0,0.00010275,2]
[348070177,1736292652383,-500.0,0.00010275,2]
[348070178,1736292652393,-500.0,0.00010275,2]
[348070179,1736292652403,-500.0,0.00010275,2]
[348070180,1736292652414,-500.0,0.00010275,2]
[348070181,1736292652423,-1082.07,0.00010275,2]
[348070182,1736292652432,-649.16,0.00010275,2]
[348070183,1736292652442,-987.88,0.00010275,2]
[348070184,1736292652451,-672.76,0.00010275,2]
[348070185,1736292652461,-500.0,0.00010275,2]
[348070186,1736292652471,-500.0,0.00010275,2]
[348070187,1736292652480,-500.0,0.00010275,2]
[348070188,1736292652490,-500.0,0.00010275,2]
[348070189,1736292652499,-500.0,0.00010275,2]
[348070190,1736292652508,-500.0,0.00010275,2]
[348070191,1736292652518,-500.0,0.00010275,2]
[348070192,1736292652527,-500.0,0.00010275,2]
[348070193,1736292652537,-500.0,0.00010275,2]
[348070194,1736292652546,-620.94,0.00010275,2]
[348070195,1736292652556,-500.0,0.00010275,2]
[348070196,1736292652566,-500.0,0.00010275,2]
[348070197,1736292652575,-500.0,0.00010275,2]
[348070198,1736292652585,-691.37,0.00010275,2]
[348070199,1736292652594,-500.0,0.00010275,2]
[348070200,1736292652603,-915.97,0.00010275,2]
[348070201,1736292652612,-548.18,0.00010275,2]
[348070202,1736292652622,-500.0,0.00010275,2]
[348070203,1736292652631,-748.05,0.00010275,2]
[348070204,1736292652640,-500.0,0.00010275,2]
[348070205,1736292652650,-500.0,0.00010275,2]
[348070206,1736292652659,-500.0,0.00010275,2]
[348070207,1736292652669,-500.0,0.00010275,2]
[348070208,1736292652678,-785.16,0.00010275,2]
[348070209,1736292652687,-523.95,0.00010275,2]
[348070210,1736292652696,-856.44,0.00010276,2]
[348070211,1736292652705,-981.16,0.00010276,2]
[348070212,1736292652714,-1160.94,0.00010276,2]
[348070213,1736292652724,-818.18,0.00010276,2]
[348070214,1736292652733,-1925.98,0.00010276,2]
[348070215,1736292652742,-1346.43,0.00010276,2]
[348070216,1736292652753,-3191.57,0.00010276,2]
[348070217,1736292652762,-2217.3,0.00010276,2]
[348070218,1736292652771,-500.0,0.00010276,2]
[348070219,1736292652780,-1106.25,0.00010276,2]
[348070220,1736292652789,-3006.56,0.00010276,2]
[348070221,1736292652799,-744.34,0.00010276,2]
[348070222,1736292652809,-1231.32,0.00010276,2]
[348070223,1736292652818,-1259.96,0.00010276,2]
[348070224,1736292652828,-1978.38,0.00010276,2]
[348070225,1736292652838,-1056.07,0.00010276,2]
[348070226,1736292652847,-3128.95,0.00010276,2]
[348070227,1736292652856,-1437.13,0.00010276,2]
[348070228,1736292652865,-2298.99,0.00010276,2]
[348070229,1736292652875,-1358.28,0.00010276,2]
[348070230,1736292652884,-1418.78,0.00010276,2]
[348070231,1736292652893,-361.39496499,0.00010348,2]
[348070232,1736292652902,-229.464,0.0001035,2]
[348070233,1736292652913,-869.24,0.00010371,2]
[348070234,1736292652922,-671.0,0.00010371,2]
[348070235,1736292652933,-1267.31,0.00010371,2]
[348070236,1736292652942,-5460.23,0.00010371,2]
[348070237,1736292652951,-596.22,0.00010371,2]
[348070238,1736292652960,-2176.3,0.00010371,2]
[348070239,1736292652970,-1159.33,0.00010371,2]
[348070240,1736292652979,-1069.96,0.00010371,2]
[348070241,1736292652988,-1526.92,0.00010371,2]
[348070242,1736292652997,-1766.9,0.00010371,2]
[348070243,1736292653007,-500.0,0.00010371,2]
[348070244,1736292653016,-935.34,0.00010371,2]
[348070245,1736292653026,-3211.9,0.00010371,2]
[348070246,1736292653036,-936.837691,0.00010371,2]
[348070247,1736292653046,-1374.41,0.00010371,2]
[348070248,1736292653056,-848.56,0.00010371,2]
[348070249,1736292653070,-864.840061,0.00010371,2]
[348070250,1736292653079,-3269.2,0.00010371,2]